[Event "22nd Hoogeveen Open 2018"]
[Site "Hoogeveen"]
[Date "2018.10.26"]
[Round "8"]
[White "Jelic, Bruno"]
[Black "Elgersma, Onno"]
[Result "0-1"]
[ECO "D36"]
[WhiteElo "2076"]
[BlackElo "2223"]
[Annotator "NA"]
[PlyCount "64"]
[EventDate "2018.10.20"]
[EventType "swiss"]
[EventCountry "NED"]
[SourceTitle "playchess.com"]
[Source "ChessBase"]
[SourceQuality "1"]
[TimeControl "40/5400+30:1800+30"]

1. d4 {[%emt 0:00:00]} Nf6 {[%emt 0:00:00]} 2. c4 {[%emt 0:00:00]} e6 {[%emt 0:00:00]} 3. Nf3 {[%emt 0:00:18]} d5 {[%emt 0:00:00]} 4. cxd5 {[%emt 0:01:36]} exd5 {[%emt 0:00:43]} 5. Bg5 {[%emt 0:00:36]} c6 {[%emt 0:03:06]} 6. Nc3 {[%emt 0:01:40]} Be7 {[%emt 0:09:16]} 7. Qc2 {[%emt 0:01:33]} O-O {[%emt 0:01:32]} 8. e3 {[%emt 0:00:12]} Nbd7 {[%emt 0:02:33]} 9. Bd3 {[%emt 0:00:08]} Re8 {[%emt 0:01:18]} 10. O-O {[%emt 0:00:15]} h6 {[%emt 0:01:15] LiveBook: 139 Games} 11. Bh4 {[%emt 0:00:03]} Ne4 {[%emt 0:07:13]} 12. Bxe7 {[%emt 0:00:52]} Qxe7 {[%emt 0:00:50]} 13. Rab1 {[%emt 0:05:01]} a5 {[%emt 0:01:55]} 14. Bxe4 {[%emt 0:09:18]} dxe4 {[%emt 0:00:04]} 15. Nd2 {[%emt 0:00:45]} Nf6 $11 {[%emt 0:06:14]} 16. Nc4 {[%emt 0:05:45]} Bf5 {[%emt 0:02:54]} 17. f4 {[%emt 0:02:33]} b5 {[%emt 0:05:59]} 18. Ne5 {[%emt 0:04:34]} Rac8 {[%emt 0:01:32]} 19. Qe2 {[%emt 0:03:31]} h5 {[%emt 0:03:01]} 20. h3 {[%emt 0:07:10]} h4 {[%emt 0:02:16]} 21. Rbc1 {[%emt 0:10:30]} Kh7 {[%emt 0:14:39]} 22. Rc2 {[%emt 0:02:41]} Rg8 {[%emt 0:02:22]} 23. Nb1 {[%emt 0:09:41]} g5 {[%emt 0:15:11]} 24. fxg5 {[%emt 0:11:13]} Rxg5 {[%emt 0:00:08]} 25. Nxc6 {[%emt 0:12:38]} Qe6 {[%emt 0:01:50]} 26. Qxb5 {[%emt 0:03:11]} Nd5 {[%emt 0:02:15]} 27. Re1 {[%emt 0:04:10]} Bxh3 {[%emt 0:02:10]} 28. Qf1 {[%emt 0:00:47]} Rxc6 {[%emt 0:01:11]} 29. Rxc6 {[%emt 0:00:30]} Qxc6 {[%emt 0:00:03]} 30. Qxf7+ {[%emt 0:00:24]} Rg7 {[%emt 0:02:10]} 31. Qh5+ {[%emt 0:03:55]} Kg8 {[%emt 0:01:18]} 32. Re2 {[%emt 0:00:00]} Bg4 {[%emt 0:00:46]} 0-1

[Event "22nd Hoogeveen Open 2018"]
[Site "Hoogeveen"]
[Date "2018.10.26"]
[Round "8"]
[White "Verhoef, Pieter"]
[Black "Clemens, Adrian"]
[Result "0-1"]
[ECO "B52"]
[WhiteElo "2058"]
[BlackElo "2153"]
[Annotator "NA"]
[PlyCount "66"]
[EventDate "2018.10.20"]
[EventType "swiss"]
[EventCountry "NED"]
[SourceTitle "playchess.com"]
[Source "ChessBase"]
[SourceQuality "1"]
[TimeControl "40/5400+30:1800+30"]

1. e4 {[%emt 0:00:17]} c5 {[%emt 0:00:00]} 2. Nf3 {[%emt 0:00:07]} d6 {[%emt 0:00:20]} 3. Bb5+ {[%emt 0:00:07]} Bd7 {[%emt 0:00:05]} 4. Bxd7+ {[%emt 0:00:07]} Nxd7 {[%emt 0:00:06]} 5. O-O {[%emt 0:00:11]} Ngf6 {[%emt 0:00:08]} 6. Qe2 {[%emt 0:00:07]} Rc8 {[%emt 0:02:45]} 7. c3 {[%emt 0:00:26] LiveBook: 27 Games} e6 {[%emt 0:00:58]} 8. d4 {[%emt 0:00:23]} Be7 {[%emt 0:01:51]} 9. Bf4 {[%emt 0:07:51]} O-O {[%emt 0:03:49]} 10. dxc5 {[%emt 0:03:19]} Nxc5 {[%emt 0:02:41]} 11. Nbd2 $11 {[%emt 0:00:30]} d5 {[%emt 0:03:31]} 12. exd5 {[%emt 0:01:00]} Nxd5 {[%emt 0:15:31]} 13. Bg3 {[%emt 0:00:31]} Qb6 {[%emt 0:00:20]} 14. Nc4 {[%emt 0:07:14]} Qa6 {[%emt 0:01:45]} 15. Rfe1 {[%emt 0:00:07]} Na4 {[%emt 0:05:38]} 16. Nce5 {[%emt 0:03:37]} Qxe2 {[%emt 0:01:43]} 17. Rxe2 {[%emt 0:00:08]} f6 {[%emt 0:07:41]} 18. Nd3 {[%emt 0:07:02]} e5 {[%emt 0:02:27]} 19. c4 {[%emt 0:07:55]} Rxc4 {[%emt 0:07:55]} 20. b3 {[%emt 0:00:07]} Nac3 {[%emt 0:00:07]} 21. Rxe5 {[%emt 0:00:48]} Rcc8 {[%emt 0:05:54]} 22. Ree1 {[%emt 0:01:12]} Ba3 {[%emt 0:03:23]} 23. Nd2 {[%emt 0:05:47]} b5 {[%emt 0:02:14]} 24. Re6 {[%emt 0:01:24]} Nb6 {[%emt 0:13:55]} 25. Ne4 {[%emt 0:04:35]} Ne2+ {[%emt 0:01:31]} 26. Kf1 {[%emt 0:02:20]} Nd4 {[%emt 0:00:06]} 27. Bd6 {[%emt 0:21:00]} Nxe6 {[%emt 0:02:11]} 28. Bxa3 {[%emt 0:00:08]} Rfd8 {[%emt 0:00:28]} 29. Nd6 {[%emt 0:01:14]} Rc6 {[%emt 0:04:10]} 30. Nf5 {[%emt 0:00:07]} Nd5 {[%emt 0:01:13]} 31. Re1 {[%emt 0:11:12]} g6 {[%emt 0:01:30]} 32. Nb4 {[%emt 0:00:22]} Nxb4 {[%emt 0:00:39]} 33. Ne7+ {[%emt 0:00:08]} Kf7 {[%emt 0:00:13]} 0-1

[Event "22nd Hoogeveen Open 2018"]
[Site "Hoogeveen"]
[Date "2018.10.26"]
[Round "8"]
[White "Boersma, Jan"]
[Black "Schippers, Maurice"]
[Result "0-1"]
[ECO "B15"]
[WhiteElo "2047"]
[BlackElo "2272"]
[Annotator "NA"]
[PlyCount "72"]
[EventDate "2018.10.20"]
[EventType "swiss"]
[EventCountry "NED"]
[SourceTitle "playchess.com"]
[Source "ChessBase"]
[SourceQuality "1"]
[TimeControl "40/5400+30:1800+30"]

1. e4 {[%emt 0:00:00]} g6 {[%emt 0:00:00]} 2. Nc3 {[%emt 0:00:00]} c6 {[%emt 0:00:05]} 3. d4 {[%emt 0:01:35]} d5 {[%emt 0:00:40]} 4. Nf3 {[%emt 0:00:09]} Bg7 {[%emt 0:00:29]} 5. h3 {[%emt 0:00:07]} dxe4 {[%emt 0:02:45]} 6. Nxe4 {[%emt 0:01:52]} Nd7 {[%emt 0:00:23]} 7. Bd3 {[%emt 0:05:10]} Ngf6 $14 {[%emt 0:00:49] LiveBook: 188 Games} 8. Neg5 {[%emt 0:17:00]} h6 {[%emt 0:15:44]} 9. Ne4 {[%emt 0:04:16]} Nxe4 {[%emt 0:01:24]} 10. Bxe4 {[%emt 0:00:05]} c5 {[%emt 0:03:20]} 11. c3 {[%emt 0:06:00]} cxd4 {[%emt 0:01:29]} 12. cxd4 {[%emt 0:00:33]} Nf6 {[%emt 0:00:23]} 13. Bd3 {[%emt 0:00:38]} O-O {[%emt 0:05:43]} 14. O-O {[%emt 0:00:10]} b6 {[%emt 0:00:43]} 15. Qe2 {[%emt 0:06:17]} Bb7 {[%emt 0:06:11]} 16. Be3 {[%emt 0:00:35]} Rc8 {[%emt 0:02:31]} 17. Ba6 {[%emt 0:01:21]} Qd5 {[%emt 0:03:00]} 18. Rac1 {[%emt 0:03:00]} e6 {[%emt 0:01:50]} 19. Bxb7 {[%emt 0:04:10]} Qxb7 {[%emt 0:00:06]} 20. Ne5 {[%emt 0:00:13]} Rxc1 {[%emt 0:04:25]} 21. Rxc1 {[%emt 0:00:09]} Rc8 {[%emt 0:00:13]} 22. Rxc8+ {[%emt 0:00:35]} Qxc8 {[%emt 0:00:03]} 23. b4 {[%emt 0:00:46]} Nd5 {[%emt 0:14:01]} 24. b5 {[%emt 0:01:27]} Qc3 {[%emt 0:03:31]} 25. Nc6 {[%emt 0:01:32]} a6 {[%emt 0:03:22]} 26. a4 {[%emt 0:02:07]} Qa1+ {[%emt 0:01:05]} 27. Kh2 {[%emt 0:01:21]} Qxa4 {[%emt 0:00:18]} 28. Na7 {[%emt 0:01:51]} Nc3 {[%emt 0:03:08]} 29. Qf3 {[%emt 0:00:46]} Nd5 {[%emt 0:05:12]} 30. Qe2 {[%emt 0:00:55]} axb5 {[%emt 0:02:04]} 31. Nxb5 {[%emt 0:00:08]} Qb4 {[%emt 0:00:22]} 32. Bd2 {[%emt 0:01:35]} Qb2 {[%emt 0:02:18]} 33. Qd3 {[%emt 0:00:43]} Ne7 {[%emt 0:01:21]} 34. Be3 {[%emt 0:02:27]} Nf5 {[%emt 0:01:40]} 35. Qc4 {[%emt 0:04:26]} Kh7 {[%emt 0:01:19]} 36. Nc7 {[%emt 0:04:47]} Bxd4 {[%emt 0:02:25]} 0-1

[Event "22nd Hoogeveen Open 2018"]
[Site "Hoogeveen"]
[Date "2018.10.26"]
[Round "8"]
[White "Van de Pavoordt, Max"]
[Black "Pham, Khoi"]
[Result "1/2-1/2"]
[ECO "A48"]
[WhiteElo "2034"]
[BlackElo "2153"]
[Annotator "NA"]
[PlyCount "127"]
[EventDate "2018.10.20"]
[EventType "swiss"]
[EventCountry "NED"]
[SourceTitle "playchess.com"]
[Source "ChessBase"]
[SourceQuality "1"]
[TimeControl "40/5400+30:1800+30"]

1. Nf3 {[%emt 0:00:00]} d6 {[%emt 0:00:00]} 2. c3 {[%emt 0:00:59]} Nf6 {[%emt 0:00:00]} 3. d4 {[%emt 0:00:07]} g6 {[%emt 0:00:00]} 4. Bf4 {[%emt 0:00:41]} Bg7 {[%emt 0:00:00]} 5. Nbd2 {[%emt 0:00:19]} O-O {[%emt 0:00:19]} 6. e4 {[%emt 0:01:09]} Nfd7 {[%emt 0:00:25]} 7. Bc4 {[%emt 0:02:59]} e5 {[%emt 0:00:47]} 8. dxe5 {[%emt 0:02:13]} dxe5 {[%emt 0:00:09]} 9. Be3 {[%emt 0:00:33]} h6 {[%emt 0:12:28]} 10. h4 {[%emt 0:02:59]} Qe7 {[%emt 0:03:18]} 11. h5 {[%emt 0:06:57]} g5 {[%emt 0:02:11]} 12. Nxg5 {[%emt 0:06:02]} hxg5 {[%emt 0:04:12]} 13. h6 {[%emt 0:00:07]} Bf6 {[%emt 0:00:07]} 14. Qh5 $17 {[%emt 0:00:45]} Kh8 {[%emt 0:05:53]} 15. Nf3 {[%emt 0:03:36]} Nb6 {[%emt 0:02:18]} 16. Bb3 {[%emt 0:00:30]} Be6 {[%emt 0:01:20]} 17. Bxg5 {[%emt 0:01:56]} Bxg5 {[%emt 0:04:33]} 18. Bxe6 {[%emt 0:01:59]} Qxe6 {[%emt 0:04:50]} 19. Qxg5 {[%emt 0:00:35]} Rg8 {[%emt 0:01:30]} 20. Qxe5+ {[%emt 0:01:53]} Qxe5 {[%emt 0:02:07]} 21. Nxe5 {[%emt 0:00:08]} f6 {[%emt 0:00:25]} 22. h7 {[%emt 0:03:18]} Rg7 {[%emt 0:01:28]} 23. Rd1 {[%emt 0:00:48]} Na6 {[%emt 0:00:52]} 24. Nd3 {[%emt 0:00:32]} Re8 {[%emt 0:01:46]} 25. f3 {[%emt 0:00:44]} Rxg2 {[%emt 0:02:06]} 26. Nf4 {[%emt 0:00:26]} Rg7 {[%emt 0:00:27]} 27. Rh6 {[%emt 0:00:50]} Rxh7 {[%emt 0:07:22]} 28. Rxf6 {[%emt 0:00:07]} Rh1+ {[%emt 0:03:41]} 29. Ke2 {[%emt 0:00:39]} Rh2+ {[%emt 0:00:17]} 30. Ke1 {[%emt 0:03:48]} Rg8 {[%emt 0:02:40]} 31. Rg6 {[%emt 0:00:48]} Rxg6 {[%emt 0:01:15]} 32. Nxg6+ {[%emt 0:00:04]} Kg7 {[%emt 0:00:31]} 33. Ne5 {[%emt 0:00:17]} Rxb2 {[%emt 0:00:22]} 34. Rd2 {[%emt 0:00:56]} Rxd2 {[%emt 0:00:35]} 35. Kxd2 {[%emt 0:00:02]} Kf6 {[%emt 0:01:26]} 36. f4 {[%emt 0:00:50]} Nc5 {[%emt 0:00:55]} 37. Ke3 {[%emt 0:00:11]} Ncd7 {[%emt 0:03:02]} 38. Ng4+ {[%emt 0:01:17]} Ke6 {[%emt 0:00:14]} 39. f5+ {[%emt 0:01:01]} Kd6 {[%emt 0:00:30]} 40. Kf4 {[%emt 0:00:06]} Nc4 {[%emt 0:00:07]} 41. Kg5 {[%emt 0:32:11]} Nce5 {[%emt 0:30:56]} 42. Ne3 {[%emt 0:00:37]} Nc5 {[%emt 0:04:21]} 43. Kf4 {[%emt 0:00:38]} b5 {[%emt 0:00:41]} 44. Nd5 {[%emt 0:01:20]} c6 {[%emt 0:01:00]} 45. Nf6 {[%emt 0:00:13]} Ncd3+ {[%emt 0:02:52]} 46. Ke3 {[%emt 0:01:22]} Ke7 {[%emt 0:03:59]} 47. Nh5 {[%emt 0:00:08]} c5 {[%emt 0:01:16]} 48. Ng7 {[%emt 0:01:18]} a5 {[%emt 0:10:29]} 49. a3 {[%emt 0:00:18]} b4 {[%emt 0:07:59]} 50. cxb4 {[%emt 0:00:14]} cxb4 {[%emt 0:00:06]} 51. axb4 {[%emt 0:00:32]} axb4 {[%emt 0:00:08]} 52. f6+ {[%emt 0:03:00]} Kf7 {[%emt 0:00:00]} 53. Nf5 {[%emt 0:00:00]} b3 {[%emt 0:00:00]} 54. Nd6+ {[%emt 0:00:00]} Kxf6 {[%emt 0:00:00]} 55. Nb5 {[%emt 0:00:00]} b2 {[%emt 0:00:00]} 56. Nc3 {[%emt 0:00:00]} Nb4 {[%emt 0:00:00]} 57. Nb1 {[%emt 0:00:00]} Ned3 {[%emt 0:00:00]} 58. Kd4 {[%emt 0:00:00]} Ke6 {[%emt 0:00:00]} 59. Kc4 {[%emt 0:00:00]} Ke5 {[%emt 0:00:00]} 60. Nd2 {[%emt 0:00:00]} Kf4 {[%emt 0:00:00]} 61. Kd4 {[%emt 0:00:00]} Nf2 {[%emt 0:00:00]} 62. Kc3 {[%emt 0:00:00]} Nbd3 {[%emt 0:00:00]} 63. Kc2 {[%emt 0:00:00]} Nxe4 {[%emt 0:00:00]} 64. Nc4 {[%emt 0:00:00]} 1/2-1/2

[Event "22nd Hoogeveen Open 2018"]
[Site "Hoogeveen"]
[Date "2018.10.26"]
[Round "8"]
[White "Biermann, Florian"]
[Black "Mijnheer, Peter"]
[Result "1-0"]
[ECO "E17"]
[WhiteElo "2024"]
[BlackElo "2092"]
[Annotator "NA"]
[PlyCount "66"]
[EventDate "2018.10.20"]
[EventType "swiss"]
[EventCountry "NED"]
[SourceTitle "playchess.com"]
[Source "ChessBase"]
[SourceQuality "1"]
[TimeControl "40/5400+30:1800+30"]

1. c4 {[%emt 0:00:00]} e6 {[%emt 0:00:00]} 2. Nf3 {[%emt 0:00:30]} d5 {[%emt 0:00:00]} 3. g3 {[%emt 0:00:23]} Nf6 {[%emt 0:00:00]} 4. Bg2 {[%emt 0:00:09]} Be7 {[%emt 0:00:00]} 5. d4 {[%emt 0:14:08]} O-O {[%emt 0:01:15]} 6. Nbd2 {[%emt 0:03:58]} b6 {[%emt 0:03:25]} 7. O-O {[%emt 0:02:26] LiveBook: 54 Games} Bb7 $11 {[%emt 0:00:38]} 8. b3 {[%emt 0:07:15]} Nbd7 {[%emt 0:00:55]} 9. Bb2 {[%emt 0:02:05]} a5 {[%emt 0:03:17]} 10. cxd5 {[%emt 0:08:32]} exd5 {[%emt 0:01:31]} 11. Ne5 {[%emt 0:03:39]} Bd6 {[%emt 0:03:31]} 12. Ndc4 {[%emt 0:01:40]} Be7 {[%emt 0:04:31]} 13. Rc1 {[%emt 0:06:59]} Re8 {[%emt 0:13:23]} 14. Qc2 {[%emt 0:05:21]} c6 {[%emt 0:08:32]} 15. Ne3 {[%emt 0:02:23]} Nxe5 {[%emt 0:02:43]} 16. dxe5 {[%emt 0:00:38]} Nd7 {[%emt 0:00:37]} 17. Qf5 {[%emt 0:03:08]} Nc5 {[%emt 0:11:56]} 18. Qg4 {[%emt 0:04:04]} Bf8 {[%emt 0:16:17]} 19. f4 {[%emt 0:07:36]} a4 {[%emt 0:01:41]} 20. b4 {[%emt 0:02:55]} a3 {[%emt 0:01:27]} 21. Ba1 {[%emt 0:00:22]} Na4 {[%emt 0:00:49]} 22. f5 {[%emt 0:03:11]} Nb2 {[%emt 0:04:21]} 23. e6 {[%emt 0:03:31]} Qf6 {[%emt 0:06:49]} 24. b5 {[%emt 0:04:12]} fxe6 {[%emt 0:05:46]} 25. fxe6 {[%emt 0:02:49]} Qe5 {[%emt 0:03:18]} 26. Qf4 {[%emt 0:03:49]} Qxe6 {[%emt 0:02:13]} 27. bxc6 {[%emt 0:01:11]} Bxc6 {[%emt 0:00:27]} 28. Rxc6 {[%emt 0:00:34]} Qxe3+ {[%emt 0:00:06]} 29. Qxe3 {[%emt 0:00:03]} Rxe3 {[%emt 0:00:07]} 30. Bxd5+ {[%emt 0:00:08]} Kh8 {[%emt 0:00:13]} 31. Rxb6 {[%emt 0:05:11]} Rae8 {[%emt 0:00:01]} 32. Bxb2 {[%emt 0:02:17]} Bc5 {[%emt 0:04:57]} 33. Rb5 {[%emt 0:00:41]} Rc3+ {[%emt 0:00:00]} 1-0

[Event "22nd Hoogeveen Open 2018"]
[Site "Hoogeveen"]
[Date "2018.10.26"]
[Round "8"]
[White "Winkels, Marcel"]
[Black "Zarkovic, Mila"]
[Result "0-1"]
[ECO "B81"]
[WhiteElo "1935"]
[BlackElo "2213"]
[Annotator "NA"]
[PlyCount "72"]
[EventDate "2018.10.20"]
[EventType "swiss"]
[EventCountry "NED"]
[SourceTitle "playchess.com"]
[Source "ChessBase"]
[SourceQuality "1"]
[TimeControl "40/5400+30:1800+30"]

1. e4 {[%emt 0:00:00]} c5 {[%emt 0:00:00]} 2. Nf3 {[%emt 0:00:00]} d6 {[%emt 0:00:00]} 3. d4 {[%emt 0:00:00]} cxd4 {[%emt 0:00:00]} 4. Nxd4 {[%emt 0:00:00]} Nf6 {[%emt 0:00:04]} 5. Nc3 {[%emt 0:00:00]} a6 {[%emt 0:00:13]} 6. h3 {[%emt 0:00:32]} e6 {[%emt 0:00:29]} 7. g4 {[%emt 0:00:19]} b5 {[%emt 0:00:12]} 8. Bg2 {[%emt 0:02:03] LiveBook: 211 Games} Bb7 {[%emt 0:00:07]} 9. a3 {[%emt 0:02:10]} Be7 {[%emt 0:02:15]} 10. g5 {[%emt 0:01:29]} Nfd7 {[%emt 0:00:16]} 11. h4 {[%emt 0:00:16]} Nc6 {[%emt 0:00:38]} 12. Be3 {[%emt 0:01:54]} Rc8 {[%emt 0:03:11]} 13. Nxc6 {[%emt 0:05:41]} Bxc6 {[%emt 0:01:07]} 14. Qd4 $11 {[%emt 0:00:53]} O-O {[%emt 0:05:56]} 15. O-O-O {[%emt 0:03:38]} a5 {[%emt 0:07:24]} 16. Na2 {[%emt 0:13:25]} Nc5 {[%emt 0:06:40]} 17. f4 {[%emt 0:01:42]} Bxe4 {[%emt 0:03:42]} 18. Qxe4 {[%emt 0:10:56]} Nxe4 {[%emt 0:00:07]} 19. Bxe4 {[%emt 0:00:05]} d5 {[%emt 0:00:55]} 20. Kb1 {[%emt 0:04:59]} b4 {[%emt 0:01:25]} 21. Bd3 {[%emt 0:07:50]} bxa3 {[%emt 0:00:36]} 22. b3 {[%emt 0:00:48]} Qc7 {[%emt 0:01:07]} 23. h5 {[%emt 0:00:54]} Rb8 {[%emt 0:02:00]} 24. Bd2 {[%emt 0:03:09]} g6 {[%emt 0:10:41]} 25. hxg6 {[%emt 0:00:30]} fxg6 {[%emt 0:00:13]} 26. Rh4 {[%emt 0:06:29]} Bb4 {[%emt 0:04:39]} 27. Be3 {[%emt 0:01:50]} Qg7 {[%emt 0:00:34]} 28. Bc1 {[%emt 0:00:33]} Bd6 {[%emt 0:00:53]} 29. Rf1 {[%emt 0:00:47]} a4 {[%emt 0:02:16]} 30. f5 {[%emt 0:04:09]} axb3 {[%emt 0:00:35]} 31. cxb3 {[%emt 0:01:49]} Rxb3+ {[%emt 0:01:22]} 32. Kc2 {[%emt 0:00:10]} Rb2+ {[%emt 0:00:06]} 33. Bxb2 {[%emt 0:04:29]} Qxb2+ {[%emt 0:00:06]} 34. Kd1 {[%emt 0:00:07]} Qxa2 {[%emt 0:02:09]} 35. Rfh1 {[%emt 0:01:00]} Qa1+ {[%emt 0:00:12]} 36. Ke2 {[%emt 0:00:08]} Qb2+ {[%emt 0:00:33]} 0-1

[Event "22nd Hoogeveen Open 2018"]
[Site "Hoogeveen"]
[Date "2018.10.26"]
[Round "8"]
[White "Van Foreest, Machteld"]
[Black "Damen, Jip"]
[Result "1-0"]
[ECO "B07"]
[WhiteElo "1934"]
[BlackElo "2192"]
[Annotator "NA"]
[PlyCount "127"]
[EventDate "2018.10.20"]
[EventType "swiss"]
[EventCountry "NED"]
[SourceTitle "playchess.com"]
[Source "ChessBase"]
[SourceQuality "1"]
[TimeControl "40/5400+30:1800+30"]

1. e4 {[%emt 0:00:00]} g6 {[%emt 0:00:00]} 2. d4 {[%emt 0:00:00]} Bg7 {[%emt 0:00:00]} 3. Nf3 {[%emt 0:00:00]} d6 {[%emt 0:00:00]} 4. Bd3 {[%emt 0:00:51]} Nf6 {[%emt 0:01:09] LiveBook: 536 Games} 5. O-O {[%emt 0:00:30]} O-O {[%emt 0:00:09]} 6. h3 {[%emt 0:01:48]} Nc6 {[%emt 0:02:02]} 7. c3 {[%emt 0:02:42]} e5 {[%emt 0:00:13]} 8. Re1 {[%emt 0:05:14]} Re8 {[%emt 0:01:19]} 9. Nbd2 $14 {[%emt 0:10:58]} Nh5 {[%emt 0:09:19]} 10. dxe5 {[%emt 0:06:37]} Nxe5 {[%emt 0:02:24]} 11. Bc2 {[%emt 0:08:00]} Qf6 {[%emt 0:08:04]} 12. Nxe5 {[%emt 0:06:43]} dxe5 {[%emt 0:00:44]} 13. Nf3 {[%emt 0:01:51]} Nf4 {[%emt 0:03:01]} 14. Bxf4 {[%emt 0:01:14]} Qxf4 {[%emt 0:00:11]} 15. Qd2 {[%emt 0:01:17]} Qf6 {[%emt 0:01:08]} 16. Qg5 {[%emt 0:02:07]} Qb6 {[%emt 0:02:28]} 17. Bb3 {[%emt 0:01:43]} a5 {[%emt 0:03:16]} 18. Rad1 {[%emt 0:14:07]} h6 {[%emt 0:08:03]} 19. Qe3 {[%emt 0:01:21]} Qf6 {[%emt 0:03:51]} 20. a4 {[%emt 0:06:39]} g5 {[%emt 0:01:13]} 21. Nh2 {[%emt 0:03:48]} Ra6 {[%emt 0:02:50]} 22. Ng4 {[%emt 0:01:45]} Qe7 {[%emt 0:02:45]} 23. Qd2 {[%emt 0:03:20]} h5 {[%emt 0:13:19]} 24. Ne3 {[%emt 0:01:11]} g4 {[%emt 0:00:12]} 25. hxg4 {[%emt 0:00:52]} hxg4 {[%emt 0:00:36]} 26. Nf5 {[%emt 0:04:42]} Bxf5 {[%emt 0:06:24]} 27. exf5 {[%emt 0:00:04]} Qh4 {[%emt 0:00:59]} 28. Qd7 {[%emt 0:03:37]} Rf8 {[%emt 0:01:50]} 29. g3 {[%emt 0:00:58]} Qf6 {[%emt 0:03:01]} 30. Qxc7 {[%emt 0:02:53]} Rb6 {[%emt 0:00:06]} 31. Bd5 {[%emt 0:01:06]} Rxb2 {[%emt 0:00:27]} 32. Be4 {[%emt 0:00:41]} Qb6 {[%emt 0:05:17]} 33. Qxb6 {[%emt 0:00:08]} Rxb6 {[%emt 0:00:04]} 34. Rb1 {[%emt 0:00:09]} Rd6 {[%emt 0:00:55]} 35. Rxb7 {[%emt 0:00:22]} Rc8 {[%emt 0:00:20]} 36. Rb5 {[%emt 0:02:20]} Bh6 {[%emt 0:01:04]} 37. Rxa5 {[%emt 0:00:59]} Bd2 {[%emt 0:00:29]} 38. Rd1 {[%emt 0:00:19]} Rxc3 {[%emt 0:04:31]} 39. f6 {[%emt 0:01:15]} Rc8 {[%emt 0:00:55]} 40. Rxe5 {[%emt 0:00:16]} Rcd8 {[%emt 0:00:59]} 41. Rf5 {[%emt 0:33:06]} Rd4 {[%emt 0:30:41]} 42. Bc6 {[%emt 0:00:29]} Kh7 {[%emt 0:01:35]} 43. a5 {[%emt 0:01:51]} Kg6 {[%emt 0:03:41]} 44. Rc5 {[%emt 0:00:00]} Be3 {[%emt 0:00:00]} 45. Rxd4 {[%emt 0:00:00]} Bxd4 {[%emt 0:00:00]} 46. Rb5 {[%emt 0:00:00]} Rc8 {[%emt 0:00:00]} 47. Be4+ {[%emt 0:00:00]} Kxf6 {[%emt 0:00:00]} 48. Rd5 {[%emt 0:00:00]} Rc4 {[%emt 0:00:00]} 49. a6 {[%emt 0:00:00]} Ba7 {[%emt 0:00:00]} 50. Rf5+ {[%emt 0:00:00]} Ke7 {[%emt 0:00:00]} 51. Rxf7+ {[%emt 0:00:00]} Kxf7 {[%emt 0:00:00]} 52. Bd5+ {[%emt 0:00:00]} Kf6 {[%emt 0:00:00]} 53. Bxc4 {[%emt 0:00:00]} Kg5 {[%emt 0:00:00]} 54. Kg2 {[%emt 0:00:00]} Bb6 {[%emt 0:00:00]} 55. f4+ {[%emt 0:00:00]} gxf3+ {[%emt 0:00:00]} 56. Kxf3 {[%emt 0:00:00]} Kf5 {[%emt 0:00:00]} 57. Bd3+ {[%emt 0:00:00]} Kg5 {[%emt 0:00:00]} 58. g4 {[%emt 0:00:40]} Ba7 {[%emt 0:00:00]} 59. Be2 {[%emt 0:00:11]} Kf6 {[%emt 0:00:00]} 60. Ke4 {[%emt 0:00:27]} Ke6 {[%emt 0:00:00]} 61. Bc4+ {[%emt 0:00:25]} Kd6 {[%emt 0:00:00]} 62. Kf5 {[%emt 0:00:06]} Ke7 {[%emt 0:00:00]} 63. Kg6 {[%emt 0:00:09]} Bd4 {[%emt 0:00:00]} 64. g5 {[%emt 0:00:09]} 1-0

[Event "22nd Hoogeveen Open 2018"]
[Site "Hoogeveen"]
[Date "2018.10.26"]
[Round "8"]
[White "Emans, Job"]
[Black "Shakhverdian, William"]
[Result "1-0"]
[ECO "E98"]
[WhiteElo "1927"]
[BlackElo "1903"]
[Annotator "NA"]
[PlyCount "113"]
[EventDate "2018.10.20"]
[EventType "swiss"]
[EventCountry "NED"]
[SourceTitle "playchess.com"]
[Source "ChessBase"]
[SourceQuality "1"]
[TimeControl "40/5400+30:1800+30"]

1. d4 {[%emt 0:00:00]} Nf6 {[%emt 0:00:00]} 2. c4 {[%emt 0:00:00]} g6 {[%emt 0:00:00]} 3. Nc3 {[%emt 0:00:00]} Bg7 {[%emt 0:00:00]} 4. e4 {[%emt 0:00:00]} d6 {[%emt 0:00:00]} 5. Nf3 {[%emt 0:00:00]} O-O {[%emt 0:00:00]} 6. Be2 {[%emt 0:00:10]} e5 {[%emt 0:00:00]} 7. O-O {[%emt 0:00:13]} Nc6 {[%emt 0:00:00]} 8. d5 {[%emt 0:00:09]} Ne7 {[%emt 0:00:01]} 9. Ne1 {[%emt 0:00:27]} Nd7 {[%emt 0:00:16]} 10. Nd3 {[%emt 0:00:41] LiveBook: 1353 Games} b6 {[%emt 0:00:33]} 11. b4 {[%emt 0:13:05]} a5 {[%emt 0:00:15]} 12. Be3 {[%emt 0:00:26]} f5 {[%emt 0:02:53]} 13. f3 {[%emt 0:00:10]} f4 {[%emt 0:01:56]} 14. Bf2 {[%emt 0:00:06]} g5 $16 {[%emt 0:01:54]} (14... axb4 $11 {remains equal.} 15. Nxb4 g5) 15. c5 {[%emt 0:06:49]} axb4 {[%emt 0:03:39]} 16. cxd6 {[%emt 0:00:06]} bxc3 {[%emt 0:01:03]} 17. dxe7 {[%emt 0:00:04]} Qxe7 {[%emt 0:00:05]} 18. Qb3 {[%emt 0:00:10]} Qd6 {[%emt 0:05:46]} 19. Qxc3 {[%emt 0:05:13]} Ba6 {[%emt 0:01:28]} 20. Rfc1 {[%emt 0:01:11]} Bxd3 {[%emt 0:11:06]} 21. Bxd3 {[%emt 0:01:26]} Rfc8 {[%emt 0:02:06]} 22. a4 {[%emt 0:01:26]} Ra5 {[%emt 0:02:58]} 23. Bb5 {[%emt 0:00:42]} Bf8 {[%emt 0:14:17]} 24. Bxd7 {[%emt 0:06:21]} Qxd7 {[%emt 0:01:07]} 25. Bxb6 {[%emt 0:00:34]} Raa8 {[%emt 0:15:45]} 26. Bf2 {[%emt 0:04:04]} Bd6 {[%emt 0:03:48]} 27. Qc6 {[%emt 0:06:05]} Qxc6 {[%emt 0:04:25]} 28. Rxc6 {[%emt 0:00:06]} Rcb8 {[%emt 0:04:18]} 29. Bc5 {[%emt 0:05:40]} Ra5 {[%emt 0:18:40]} 30. Bxd6 {[%emt 0:00:31]} cxd6 {[%emt 0:00:05]} 31. Rxd6 {[%emt 0:00:23]} Rb2 {[%emt 0:00:49]} 32. Rc6 {[%emt 0:00:43]} Rd2 {[%emt 0:00:11]} 33. Rb1 {[%emt 0:00:30]} Ra7 {[%emt 0:00:23]} 34. a5 {[%emt 0:02:31]} Ra2 {[%emt 0:01:27]} 35. d6 {[%emt 0:00:12]} R2xa5 {[%emt 0:03:04]} 36. Rc7 {[%emt 0:08:15]} Ra8 {[%emt 0:02:08]} 37. d7 {[%emt 0:01:49]} Rf8 {[%emt 0:00:26]} 38. Rd1 {[%emt 0:01:16]} Raa8 {[%emt 0:00:37]} 39. Rd5 {[%emt 0:00:13]} Ra1+ {[%emt 0:01:12]} 40. Kf2 {[%emt 0:00:04]} Ra2+ {[%emt 0:00:21]} 41. Ke1 {[%emt 0:30:21]} Raa8 {[%emt 0:30:43]} 42. Rxe5 {[%emt 0:00:10]} h6 {[%emt 0:00:31]} 43. Re7 {[%emt 0:00:30]} Rfd8 {[%emt 0:00:16]} 44. Rc6 {[%emt 0:00:57]} Kf8 {[%emt 0:00:00]} 45. Rh7 {[%emt 0:00:00]} Kg8 {[%emt 0:00:00]} 46. Rcxh6 {[%emt 0:00:00]} Kf8 {[%emt 0:00:00]} 47. e5 {[%emt 0:00:00]} Rdb8 {[%emt 0:00:00]} 48. Rh8+ {[%emt 0:00:00]} Ke7 {[%emt 0:00:00]} 49. Rxb8 {[%emt 0:00:00]} Rxb8 {[%emt 0:00:00]} 50. Rd6 {[%emt 0:00:00]} Kd8 {[%emt 0:00:00]} 51. e6 {[%emt 0:00:00]} Ke7 {[%emt 0:00:00]} 52. Rc6 {[%emt 0:00:00]} Rb5 {[%emt 0:00:00]} 53. Kd2 {[%emt 0:00:00]} Re5 {[%emt 0:00:00]} 54. Kc3 {[%emt 0:00:00]} Re1 {[%emt 0:00:00]} 55. Rc8 {[%emt 0:00:00]} Rd1 {[%emt 0:00:00]} 56. Re8+ {[%emt 0:00:00]} Kf6 {[%emt 0:00:00]} 57. d8=Q+ {[%emt 0:00:00]} 1-0